{"text_format":"3","workbook":"xlsx","n_sheets":4,"sheets":["Резюме на паричните средства","Изразходвани парични средства","Месечно резюме","Данни в диаграмата"],"not_rendered":{"charts":2,"defined_names":7,"pivot_tables":2},"read":"whole","date_system":"1900"}

{"sheet":"Резюме на паричните средства","index":0,"n_rows":22,"n_cols":7,"rows_kept":22,"merged":[[0,1,1,5],[2,1,2,2],[2,3,2,4],[3,1,18,1],[19,1,20,1],[21,1,22,1]]}
[null,"Проследяване на личните пари"]
[{"$nulls":6},"Изразходвани парични средства >"]
[{"$nulls":3},"Резюме на паричните средства"]
[null,"В тази клетка има колонна диаграма, показваща процента на наличните парични средства.",null,"Сметка","Начални парични средства","Общо разходи","Оставащи парични средства"]
[{"$nulls":3},"Текуща разплащателна",{"v":3000,"d":"3000.00"},{"$f":"SUMIF(ИзразходваниПаричниСредства[Сметка],\"=\" &ПаричниСредстваТаблицаРезюме[[#This Row],[Сметка]],ИзразходваниПаричниСредства[Сума])","v":{"v":496,"d":"496.00"}},{"$f":"ПаричниСредстваТаблицаРезюме[[#This Row],[Начални парични средства]]-ПаричниСредстваТаблицаРезюме[[#This Row],[Общо разходи]]","v":{"v":2504,"d":"2504.00"}}]
[{"$nulls":3},"Спестовна",{"v":500,"d":"500.00"},{"$f":"SUMIF(ИзразходваниПаричниСредства[Сметка],\"=\" &ПаричниСредстваТаблицаРезюме[[#This Row],[Сметка]],ИзразходваниПаричниСредства[Сума])","v":{"v":450,"d":"450.00"}},{"$f":"ПаричниСредстваТаблицаРезюме[[#This Row],[Начални парични средства]]-ПаричниСредстваТаблицаРезюме[[#This Row],[Общо разходи]]","v":{"v":50,"d":"50.00"}}]
[{"$nulls":3},"Други",{"v":200,"d":"200.00"},{"$f":"SUMIF(ИзразходваниПаричниСредства[Сметка],\"=\" &ПаричниСредстваТаблицаРезюме[[#This Row],[Сметка]],ИзразходваниПаричниСредства[Сума])","v":{"v":30,"d":"30.00"}},{"$f":"ПаричниСредстваТаблицаРезюме[[#This Row],[Начални парични средства]]-ПаричниСредстваТаблицаРезюме[[#This Row],[Общо разходи]]","v":{"v":170,"d":"170.00"}}]
[{"$nulls":3},"Общо",{"$f":"SUBTOTAL(109,ПаричниСредстваТаблицаРезюме[Начални парични средства])","v":{"v":3700,"d":"3700.00"}},{"$f":"SUBTOTAL(109,ПаричниСредстваТаблицаРезюме[Общо разходи])","v":{"v":976,"d":"976.00"}},{"$f":"SUBTOTAL(109,ПаричниСредстваТаблицаРезюме[Оставащи парични средства])","v":{"v":2724,"d":"2724.00"}}]
{"$rows_empty":11}
[null,"Парични средства\nОставащи:"]
[]
[null,{"$f":"ПаричниСредстваТаблицаРезюме[[#Totals],[Оставащи парични средства]]/ПаричниСредстваТаблицаРезюме[[#Totals],[Начални парични средства]]","v":{"v":0.7362162162162162,"d":"74%"}}]

{"sheet":"Изразходвани парични средства","index":1,"n_rows":16,"n_cols":6,"rows_kept":16,"merged":[[0,1,1,3],[2,1,2,2],[3,5,6,6],[7,5,14,6]]}
["Създайте списък с изразходваните средства в този работен лист. Въведете подробна информация в таблицата Изразходвани парични средства. Изберете клетка E2, за да се придвижите до работния лист за Резюме на паричните средства и F2, за да се придвижите до месечното","Проследяване на личните пари"]
[{"$nulls":4},"< Резюме на паричните средства","Месечно резюме >"]
[null,"Изразходвани парични средства"]
[null,"Дата","Описание","Сума","Сметка","В тази клетка се намира сегментаторът за филтриране на данните в таблицата по вид сметка."]
[null,{"$f":"TODAY()+105","v":"2023-03-28"},"Изтегляне от банкомат",{"v":40,"d":"40.00"},"Текуща разплащателна"]
[null,{"$f":"TODAY()+106","v":"2023-03-29"},"Обяд",{"v":5,"d":"5.00"},"Текуща разплащателна"]
[null,{"$f":"TODAY()+107","v":"2023-03-30"},"Изплащане на кола",{"v":230,"d":"230.00"},"Спестовна"]
[null,{"$f":"TODAY()+135","v":"2023-04-27"},"Плащане за електричество",{"v":70,"d":"70.00"},"Текуща разплащателна","В тази клетка се намира сегментаторът за филтриране на данните в таблицата по описание."]
[null,{"$f":"TODAY()+139","v":"2023-05-01"},"Вечеря",{"v":53,"d":"53.00"},"Текуща разплащателна"]
[null,{"$f":"TODAY()+162","v":"2023-05-24"},"Изтегляне на парични средства",{"v":100,"d":"100.00"},"Спестовна"]
[null,{"$f":"TODAY()+167","v":"2023-05-29"},"Изплащане на кола",{"v":230,"d":"230.00"},"Текуща разплащателна"]
[null,{"$f":"TODAY()+198","v":"2023-06-29"},"Плащане за електричество",{"v":70,"d":"70.00"},"Спестовна"]
[null,{"$f":"TODAY()+212","v":"2023-07-13"},"Изтегляне от банкомат",{"v":30,"d":"30.00"},"Текуща разплащателна"]
[null,{"$f":"TODAY()+225","v":"2023-07-26"},"Изтегляне от банкомат",{"v":50,"d":"50.00"},"Спестовна"]
[null,{"$f":"TODAY()+232","v":"2023-08-02"},"Изтегляне от банкомат",{"v":30,"d":"30.00"},"Други"]
[null,{"$f":"TODAY()+283","v":"2023-09-22"},"Плащане за електричество",{"v":68,"d":"68.00"},"Текуща разплащателна"]

{"sheet":"Месечно резюме","index":2,"n_rows":39,"n_cols":6,"rows_kept":39,"merged":[[0,1,1,4],[2,1,2,5],[3,1,3,6],[4,1,16,4],[4,5,8,6],[9,5,16,6],[17,1,17,5]]}
[null,"Месечно резюме"]
[{"$nulls":5},"< Изразходвани парични средства"]
[null,"За да актуализирате тези данни, първо изберете обобщената диаграма.  Кликнете веднъж с десен бутон на мишката, за да отворите контекстното меню.  Изберете „Обнови“ или „Обнови всички“, за да актуализирате диаграмата."]
[null,"Резюме на сметката"]
[null,"В тази клетка се намира колонната диаграма, която сравнява разплащателната, спестовната и други сметки за всеки месец.",{"$nulls":3},"В тази клетка се намира сегментаторът за филтриране на диаграмата по вид сметка."]
[]
[]
[]
[]
[{"$nulls":5},"Сегментаторът за филтриране на диаграмата по описание се намира в тази клетка."]
{"$rows_empty":7}
[null,"Резюме на разходите"]
[null,"Подробни данни"]
[null,null,"Текуща разплащателна","Спестовна","Други","Обща сума"]
[null,"мар",{"v":45,"d":"45.00"},{"v":230,"d":"230.00"},null,{"v":275,"d":"275.00"}]
[null,"Изплащане на кола",null,{"v":230,"d":"230.00"},null,{"v":230,"d":"230.00"}]
[null,"Изтегляне от банкомат",{"v":40,"d":"40.00"},null,null,{"v":40,"d":"40.00"}]
[null,"Обяд",{"v":5,"d":"5.00"},null,null,{"v":5,"d":"5.00"}]
[null,"апр",{"v":70,"d":"70.00"},null,null,{"v":70,"d":"70.00"}]
[null,"Плащане за електричество",{"v":70,"d":"70.00"},null,null,{"v":70,"d":"70.00"}]
[null,"май",{"v":283,"d":"283.00"},{"v":100,"d":"100.00"},null,{"v":383,"d":"383.00"}]
[null,"Вечеря",{"v":53,"d":"53.00"},null,null,{"v":53,"d":"53.00"}]
[null,"Изплащане на кола",{"v":230,"d":"230.00"},null,null,{"v":230,"d":"230.00"}]
[null,"Изтегляне на парични средства",null,{"v":100,"d":"100.00"},null,{"v":100,"d":"100.00"}]
[null,"юни",null,{"v":70,"d":"70.00"},null,{"v":70,"d":"70.00"}]
[null,"Плащане за електричество",null,{"v":70,"d":"70.00"},null,{"v":70,"d":"70.00"}]
[null,"юли",{"v":30,"d":"30.00"},{"v":50,"d":"50.00"},null,{"v":80,"d":"80.00"}]
[null,"Изтегляне от банкомат",{"v":30,"d":"30.00"},{"v":50,"d":"50.00"},null,{"v":80,"d":"80.00"}]
[null,"авг",null,null,{"v":30,"d":"30.00"},{"v":30,"d":"30.00"}]
[null,"Изтегляне от банкомат",null,null,{"v":30,"d":"30.00"},{"v":30,"d":"30.00"}]
[null,"сеп",{"v":68,"d":"68.00"},null,null,{"v":68,"d":"68.00"}]
[null,"Плащане за електричество",{"v":68,"d":"68.00"},null,null,{"v":68,"d":"68.00"}]
[null,"Обща сума",{"v":496,"d":"496.00"},{"v":450,"d":"450.00"},{"v":30,"d":"30.00"},{"v":976,"d":"976.00"}]

{"sheet":"Данни в диаграмата","index":3,"n_rows":12,"n_cols":6,"rows_kept":12,"merged":[[0,1,0,2]]}
[null,"Данни в обобщена диаграма"]
[null,"Тази обобщена таблица е източникът на данни за обобщената диаграма за резюмето на сметката в листа с месечното резюме."]
[null,"Подробни данни","Етикети на колони"]
[null,"Етикети на редове","Текуща разплащателна","Спестовна","Други","Обща сума"]
[null,"мар",{"v":45,"d":"45.00"},{"v":230,"d":"230.00"},null,{"v":275,"d":"275.00"}]
[null,"апр",{"v":70,"d":"70.00"},null,null,{"v":70,"d":"70.00"}]
[null,"май",{"v":283,"d":"283.00"},{"v":100,"d":"100.00"},null,{"v":383,"d":"383.00"}]
[null,"юни",null,{"v":70,"d":"70.00"},null,{"v":70,"d":"70.00"}]
[null,"юли",{"v":30,"d":"30.00"},{"v":50,"d":"50.00"},null,{"v":80,"d":"80.00"}]
[null,"авг",null,null,{"v":30,"d":"30.00"},{"v":30,"d":"30.00"}]
[null,"сеп",{"v":68,"d":"68.00"},null,null,{"v":68,"d":"68.00"}]
[null,"Обща сума",{"v":496,"d":"496.00"},{"v":450,"d":"450.00"},{"v":30,"d":"30.00"},{"v":976,"d":"976.00"}]